Cogmind - Beta 13 @@@ ROGUE MODE // 2024.03.05 @ 05:15:33 Player: J1ANG-5HI Result: Destroyed by YD-7HT(R) with Subdweller Beam Cannon Performance ------------- Evolutions (0) 0 Regions Visited (2) 400 Robots Destroyed (20) 100 Value Destroyed (587) 587 Prototype IDs (3) 60 Alien Tech Used (0) 0 Bonus (0) 0 TOTAL SCORE: 1147 Bonus ------- None Cogmind --------- Core Integrity 0/250 Matter 290/300 Energy 315/315 System Corruption 0% Temperature Cool (9) Movement Rolling (130) Ox2 Location -10/Subcaves Parts ------- > --- POWER (1) -------- Neutrino Core > --- PROPULSION (2) --- Light Treads Compact Wheel > --- UTILITY (2) ------ Large Storage Unit Makeshift Light Armor Plating > --- WEAPON (2) ------- Riot Gun Makeshift Sword > --- INVENTORY (15) --- Light Nuclear Core Light Nuclear Core Spiked Treads Subdweller Optics Sensor Array Signal Interpreter ECM Suite Scrap Shield Light Assault Rifle Improved Light Cannon Improved Light Cannon Improved Light Cannon Grenade Launcher Peak State ------------ > --- POWER ------------ Neutrino Core > --- PROPULSION ------- Light Treads Compact Wheel > --- UTILITY ---------- Large Storage Unit Makeshift Light Armor Plating > --- WEAPON ----------- Riot Gun Makeshift Sword > --- INVENTORY -------- Light Nuclear Core Light Nuclear Core Spiked Treads Subdweller Optics Sensor Array Signal Interpreter ECM Suite Scrap Shield Light Assault Rifle Improved Light Cannon Improved Light Cannon Improved Light Cannon Grenade Launcher [Rating: 22] Favorites ----------- Power Improved Ion Engine Engine Improved Ion Engine Power Core Neutrino Core Propulsion Aluminum Leg Treads Light Treads Leg Aluminum Leg Wheel Compact Wheel Utility Seismic Detector Device Seismic Detector Storage Large Storage Unit Protection Makeshift Light Armor Plating Weapon Light Assault Rifle Energy Gun Small Laser Ballistic Gun Light Assault Rifle Ballistic Cannon Improved Light Cannon Slashing Weapon Makeshift Sword Build | -11 -10 -10 ------- Run | Yrd Mat Sub Slots Evolved . | . . . Power . | . . . Propulsion . | . . . Utility . | . . . Weapon . | . . . Parts Attached 17 | . 8 9 Power 4 | . 2 2 Engine 3 | . 2 1 Core 1 | . . 1 Reactor . | . . . Propulsion 3 | . 1 2 Treads 1 | . . 1 Leg 1 | . 1 . Wheel 1 | . . 1 Hover . | . . . Flight . | . . . Utility 5 | . 3 2 Device 3 | . 2 1 Storage 1 | . 1 . Processor . | . . . Hackware . | . . . Protection 1 | . . 1 Artifact . | . . . Weapon 5 | . 2 3 Energy Gun 1 | . . 1 Energy Cannon . | . . . Ballistic Gun 1 | . 1 . Ballistic Cannon 2 | . 1 1 Launcher . | . . . Special Weapon . | . . . Impact Weapon . | . . . Slashing Weapon 1 | . . 1 Piercing Weapon . | . . . Special Melee Weapon . | . . . Unidentified Prototypes . | . . . Parts Lost 4 | . 2 2 Power 1 | . 1 . Propulsion . | . . . Utility 1 | . . 1 Weapon 2 | . 1 1 Highest Loss Streak 1 | . 1 1 To Critical Strikes 1 | . . 1 Average Slot Usage (%) 99 | . 99 99 Engine 11 | . 14 8 Core 2 | . . 5 Treads 3 | . . 9 Leg 19 | . 28 9 Wheel 3 | . . 9 Device 13 | . 13 13 Storage 14 | . 14 14 Energy Gun 8 | . 9 7 Ballistic Gun 12 | . 14 10 Ballistic Cannon 5 | . 4 6 Slashing Weapon 1 | . . 3 Naked Turns . | . . . Heaviest Build 43 | 13 33 43 Greatest Support 20 | 20 20 20 Greatest Overweight (x) 10 | . 1 10 Average Overweight (x) 1 | . . 1 Largest Inventory Capacity 15 | . 15 15 Average Capacity 13 | . 12 15 Most Carried 15 | . 15 15 Average Carried 12 | . 10 14 Final Capacity 15 | 8 15 15 Final Carried 15 | 6 15 14 Class Distribution -------------------- 100% | Mutant Dominant Class ---------------- Mutant | -10/Materials Mutant | -10/Subcaves Resources | -11 -10 -10 ----------- Run | Yrd Mat Sub Matter Collected 614 | 178 260 176 Remotely . | . . . Salvage Created 701 | . 462 239 Parts 48 | . 29 19 Haulers Intercepted . | . . . Recyclers Shooed . | . . . Parts Field Recycled . | . . . Retrieved Matter . | . . . Parts Self-Destructed 7 | . . 7 Prevented . | . . . Kills | -11 -10 -10 ------- Run | Yrd Mat Sub Combat Hostiles Destroyed 16 | . 11 5 Melee 2 | . . 2 Guns 11 | . 9 2 Cannons 3 | . 2 1 Classes Destroyed 5 | . 4 1 Worker 1 | . 1 . Watcher 3 | . 3 . Swarmer 3 | . 3 . Grunt 8 | . 8 . Subdweller 5 | . . 5 Best Kill Streak 3 | . 3 1 Combat Bots Only 3 | . 3 1 Max Kills in Single Turn 2 | . 2 1 Gunslinging . | . . . Exploded . | . . . Melee 1 | . . 1 Uniques/NPCs Destroyed . | . . . Combat | -11 -10 -10 -------- Run | Yrd Mat Sub Hostile Shots Fired 81 | . 63 18 Missed 24 | . 19 5 Damage Taken 948 | . 506 442 Core 254 | . 87 167 Absorbed by Shields . | . . . Regen/Repaired (Parts) 18 | . 18 . Core Remaining (%) 100 | 100 . . Volleys Fired 84 | . 57 27 Largest 2 | . 2 2 Hottest 70 | . 60 70 Shots Fired 147 | . 112 35 Gun 112 | . 99 13 Cannon 35 | . 13 22 Launcher . | . . . Special . | . . . Kinetic 100 | . 69 31 Thermal 43 | . 43 . Explosive . | . . . Electromagnetic 4 | . . 4 Robot Hit Streak 17 | . 17 6 Robot Miss Streak 2 | . 2 2 Penetration Max . | . . . Secondary Targets . | . . . Shots Hit Robots 91 | . 76 15 Core Hits 32 | . 25 7 Critical Kills . | . . . Critical Parts Destroyed . | . . . Critical Strikes . | . . . Melee Attacks 6 | . . 6 Impact . | . . . Slashing 6 | . . 6 Piercing . | . . . Sneak Attacks . | . . . Combat Hostiles . | . . . Follow-up Attacks . | . . . Damage Inflicted 1274 | . 967 307 Guns 890 | . 791 99 Cannons 263 | . 176 87 Explosions . | . . . Melee 121 | . . 121 Ramming . | . . . Kinetic 733 | . 617 116 Thermal 350 | . 350 . Explosive . | . . . Electromagnetic 70 | . . 70 Impact . | . . . Slashing 121 | . . 121 Piercing . | . . . Highest Corruption . | . . . Average Corruption . | . . . Corruption Purged . | . . . Corruption Blocked . | . . . Overload Shots . | . . . Overflow Damage . | . . . Projectiles . | . . . Explosions . | . . . Melee . | . . . Knockbacks 3 | . 3 . Impact . | . . . Kinetic 3 | . 3 . Secondary . | . . . Self-Inflicted Damage . | . . . Shots . | . . . Rammed . | . . . Targets Rammed . | . . . Kicked . | . . . Crushed . | . . . Highest Temperature 123 | . 123 2 Average Temperature 34 | . 35 2 Received Heat Transfer 309 | . 264 45 Siege Activations . | . . . Robots Corrupted . | . . . Combat Hostiles . | . . . Parts Fried . | . . . Impact Corruptions . | . . . Robots Melted . | . . . Combat Hostiles . | . . . Parts Melted 2 | . 2 . Heat Transferred 750 | . 750 . Parts Sabotaged . | . . . Parts Stolen . | . . . Parts Stripped . | . . . Power Chain Reactions . | . . . Alert | -11 -10 -10 ------- Run | Yrd Mat Sub Peak Influence 188 | . 188 . Initial . | . . . Average 65 | . 65 . Maximum Alert Level . | . . . Low Security (%) 100 | . 100 . Level 1 . | . . . Level 2 . | . . . Level 3 . | . . . Level 4 . | . . . Level 5 . | . . . High Security . | . . . Max Security . | . . . Squads Dispatched 1 | . 1 . Investigation 1 | . 1 . Extermination . | . . . Reinforcement . | . . . Assault . | . . . Garrison . | . . . Intercept . | . . . Searches Triggered . | . . . Construction Impeded . | . . . Haulers Reinforced . | . . . Active Scanning Responses . | . . . Cargo Convoy Interrupts . | . . . Stealth | -11 -10 -10 --------- Run | Yrd Mat Sub Distress Signals 1 | . 1 . Communications Jammed . | . . . Distress Signals . | . . . Times Spotted 31 | . 23 8 Peak Tracking Total 4 | . 4 2 Tactical Retreats . | . . . Traps | -11 -10 -10 ------- Run | Yrd Mat Sub Traps Triggered 3 | . . 3 Indirectly . | . . . Trap Hack Attempts . | . . . Triggered . | . . . Disarmed . | . . . Reprogrammed . | . . . Reused . | . . . Traps Extracted . | . . . Installed . | . . . Triggered . | . . . Machines | -11 -10 -10 ---------- Run | Yrd Mat Sub Machines Disabled 1 | . 1 . Max in Single Turn 1 | . 1 . Machines Repaired . | . . . Machines Dismantled . | . . . Machines Sabotaged . | . . . Overloaded Fab Kills . | . . . Hacking | -11 -10 -10 --------- Run | Yrd Mat Sub Machines Accessed 10 | . 10 . Terminals 7 | . 7 . Fabricators . | . . . Repair Stations 1 | . 1 . Recycling Units 2 | . 2 . Scanalyzers . | . . . Garrison Access . | . . . Total Hacks 35 | . 35 . Successful 18 | . 18 . Failed 17 | . 17 . Catastrophic 2 | . 2 . Database Lockouts . | . . . Manual 21 | . 21 . Terminals 28 | . 28 . Fabricators . | . . . Repair Stations 2 | . 2 . Recycling Units 5 | . 5 . Scanalyzers . | . . . Garrison Access . | . . . Terminal Hacks 10 | . 10 . Robot Analysis 4 | . 4 . Prototype ID Bank 2 | . 2 . Locate Traps 3 | . 3 . Hauler Manifests 1 | . 1 . Fabricator Hacks . | . . . Repair Station Hacks 2 | . 2 . Scan Component 1 | . 1 . Repair 1 | . 1 . Recycling Unit Hacks 2 | . 2 . Report Inventory 2 | . 2 . Scanalyzer . | . . . Garrison Access Hacks . | . . . Unauthorized Hacks 4 | . 4 . Terminals 3 | . 3 . Botnet 3 | . 3 . Fabricators . | . . . Repair Stations . | . . . Recycling Units 1 | . 1 . Tunnel 1 | . 1 . Scanalyzers . | . . . Garrison Access . | . . . Data Cores Recovered . | . . . Used . | . . . Hacking Detections 8 | . 8 . Full Trace Events . | . . . Feedback Events . | . . . Feedback Blocked . | . . . Robot Schematics Acquired . | . . . Robots Built . | . . . Authchips . | . . . Time . | . . . Total Robot Build Rating . | . . . Part Schematics Acquired . | . . . Parts Built . | . . . Authchips . | . . . Time . | . . . Total Part Build Rating . | . . . Parts Repaired 1 | . 1 . Time 26 | . 26 . Parts Recycled . | . . . Recycled Matter . | . . . Retrieved Matter . | . . . Retrieved Components . | . . . Parts Scanalyzed . | . . . Part Schematics Acquired . | . . . Parts Damaged . | . . . Bothacking | -11 -10 -10 ------------ Run | Yrd Mat Sub Used RIF Installer . | . . . Robots Hacked . | . . . Non-combat . | . . . Combat . | . . . Robot Hacks Applied . | . . . Relay Couplers Released . | . . . Fabnet Peak Effective % . | . . . Robots Rewired . | . . . Allies Hacked . | . . . Hacks Repelled . | . . . Allies | -11 -10 -10 -------- Run | Yrd Mat Sub Total Allies . | . . . Largest Group . | . . . Highest-Rated Group . | . . . Highest-Rated Ally . | . . . Total Orders . | . . . Ally Attacks . | . . . Total Damage . | . . . Kills . | . . . Allies Corrupted . | . . . Allies Melted . | . . . Intel | -11 -10 -10 ------- Run | Yrd Mat Sub Robot Analysis Total 4 | . 4 . Derelict Logs Recovered 1 | . . 1 Drone Launches . | . . . Drone Recoveries . | . . . Exploration | -11 -10 -10 ------------- Run | Yrd Mat Sub Turns Passed 3464 | . 1945 1519 Spaces Moved 1826 | 1 845 980 Core 1 | . . 1 Treads . | . . . Legs 1114 | 1 845 268 Wheels 711 | . . 711 Hover . | . . . Flight . | . . . Fastest Speed 115 | 120 120 115 Average Speed 152 | 120 162 144 Slowest Speed 550 | 120 190 550 Overloaded Moves . | . . . Propulsion Burnouts . | . . . Robots Hopped . | . . . Cave-ins Triggered . | . . . Exploration Rate (%) 47 | 2 94 46 Regions Visited 2 Branch Regions 1 Pre-discovered Areas 1 | . 1 . Known Exits Taken . | . . . Unknown Exits Taken 2 | 1 1 . Scrap Searched 8 | . . 8 Spaces Dug 1 | . . 1 Terrain Destroyed 2 | . 1 1 Melee 1 | . . 1 Projectile 1 | . 1 . AOE . | . . . Terrain Rammed . | . . . Walls Destroyed . | . . . Machines Disabled . | . . . Actions | -11 -10 -10 --------- Run | Yrd Mat Sub Total 2362 | . 1317 1045 Wait 391 | . 383 8 Move 1824 | . 844 980 Hop . | . . . Pick Up 23 | . 17 6 Fast Attach 3 | . 2 1 Attach 8 | . 4 4 Detach . | . . . Swap 6 | . 2 4 Drop 17 | . 8 9 Fire 84 | . 57 27 Melee 6 | . . 6 Ram . | . . . Kick . | . . . Crush . | . . . Escape Stasis . | . . . Rewire . | . . . Trap . | . . . Miscellaneous . | . . . Route ------- -11/Scrapyard -10/Materials (discovered 4 exits: [*Mat x2] / [*Min] / [*Sub]) -10/Subcaves History --------- Turn | Location | Event 1 | -11/Scrapyard | Discovered new exit (range 0) 1 | -11/Scrapyard | Entered Materials 30 | -10/Materials | Discovered new exit (range 15) 305 | -10/Materials | Build established: Mutant 1327 | -10/Materials | Discovered new exit (range 4) 1527 | -10/Materials | Repaired Seismic Detector 1714 | -10/Materials | Discovered new exit (range 8) 1942 | -10/Materials | Discovered new exit (range 3) 1946 | -10/Materials | Entered Subcaves 2212 | -10/Subcaves | A swath of the cavern ceiling suddenly collapsed 2371 | -10/Subcaves | Learned Materials emergency access door positions 2432 | -10/Subcaves | Shifting Twisted Machinery released Sub. Laser 2532 | -10/Subcaves | Core integrity fell below 50% 2562 | -10/Subcaves | Shifting Twisted Machinery released Piercing Trap 3150 | -10/Subcaves | Core integrity fell below 20% 3337 | -10/Subcaves | Ambushed by Subdwellers from Twisted Machinery 3465 | -10/Subcaves | Destroyed by YD-7HT(R) with Subdweller Beam Cannon Last Messages --------------- 02873_ FW-CT1(h) suffers critical hit (Impale). 02873_ FW-CT1(h) destroyed. 02879_ Dropped Imp. Ion Engine. 02881_ Acquired 10 matter. 03141_ Searching scrap... 03141_ Found Sub. Machine Gun. 03141_ Found 25 Matter. 03142_ Acquired 25 matter. 03149_ Triggered Piercing Trap. 03149_ Spikes shoot up from the floor. 03149_ Critical hit (Impale). 03151_ Searching scrap... 03151_ Found Battle Rifle. 03151_ Found 20 Matter. 03152_ Acquired 20 matter. 03218_ OI-OX5(R) destroyed. 03220_ Acquired 27 matter. 03333_ NK-RX7(R) destroyed. 03456_ Seismic Detector destroyed. Map ----- +----------------------------------------------------+ | "### ### ########?????????# ????## #??? | | #"##" ##### ##????????# ### ?????## #??? | | """" #??# ####?????#???##????## ##??? | | #""# #?# #????????###???## #???? | | "#" ###### #???????## #???# #???? | | ### ##???# ## ##??????## #?### ##??? | | ??###??### ####?# #######?## ### #??? | | ???##### ###???#### ### ### #?? | | #### ## ##????# ## ###?# #?? | | ##????# ##???# ## #?? | | ###### #????###?##?? | | ## ## ###### ##???? | | #### ## ## ### #???? | | # ###??###### ## #???? | | # #?????????### ###?? | | # ???????????# ##### ## ### ## | | ??????????## ##???### ## #??# # | | """ ???????????####??????# ## ##??# | | """" ????????????##??????# ## #??# | | #### #??????????## #?????####### ## ##?# | | ????# ?????????## #??##; ##??### ### ## | | ????? ???????## ### ###??# #???# | | ?????? ???????# ##?# #??## # | | ??????? ??????????# ### #### # | | ???????????????????# ### ## # | | ???????????????????# @ ## #?# | | ???????????????????# RR### ### | | ???????????????????# ??# ## ## | | ??????????????????# ??# ### ### ## | | ??????????????????# # ??#### ## ### | | ??????????????????## ????# #?# | | ?????????????????? ???# ##?# | | "???????????????? ? ???# #??# | | "??????????????? ???## ####### #??# | | ???????????????####### ?????#####??????#####?? # | | ?????????????????????##???????????????????????#### | | ?????????????????????????????????????????????????? | | ?????????????????????????????????????????????????? | | ?????????????????????????????????????????????????? | | ?????????????????????????????????????????????????? | | ?????????????????????????????????????????????????? | | ?????????????????????????????????????????????????? | | ?????????????????????????????????????????????????? | | ?????????????????????????????????????????????????? | | ?????????????????????????????????????????????????? | | ?????????????????????????????????????????????????? | | ?????????????????????????????????????????????????? | | ?????????????????????????????????????????????????? | | ?????????????????????????????????????????????????? | | ?????????????????????????????????????????????????? | +----------------------------------------------------+ Best States ------------- Heat Dissipation 25 Energy Generation 19 Energy Capacity 315 Matter Stores 300 Matter Capacity 300 Sight Range 16 Terrain Scan Density 10 Armor Coverage 100 Evasion (%) 55 Recoil Reduction 1 Item Schematics ----------------- None Robot Schematics ------------------ None Fabricated ------------ Nothing Alien Tech Used ----------------- None Achievements -------------- None Challenges ------------ None Game ------ Seed AntimatterTargetingArchive Manual? 0 Play Time 00:28:17 Cumulative 175.9 hours Start 2024.03.05 @ 04:49:54 End 2024.03.05 @ 05:15:33 Sessions 1 Manual Loads 0 Difficulty Rogue Special Mode None Game No. 135 Rogue 125 Adventurer 0 Explorer 10 Win Type - Total 3 Types 3/0/0/0/0/0/0/0/0 Lore% 57 Gallery% 68 Achievement% 51 Wizard Run 0 Options --------- Layout 1 ASCII 0 Keyboard 0 Movement Arrows Keybinds 1 Fullscreen 1 Font 24/Smallcaps Map View 50x35 Zoom Use 0% Tactical HUD 1 Map Filters NONE Filters NONE Steam 1 RUN: ec76c0d0-1db2-4302-862c-dc7c92fc1b34